fUSD/lending_fUSD_20241223
["ID","MTS","AMOUNT","RATE_DAILY","PERIOD"]
[346431081,1734973840532,-4603.00000947,0.00018413,3]
[346431082,1734973840584,-628.89000021,0.00018413,3]
[346431083,1734973840657,-336.33619772,0.0001721,2]
[346431084,1734973840854,-3659.53069064,0.0001721,2]
[346431085,1734973840864,-11931.46930936,0.00018413,3]
[346431086,1734973840875,-11043.9885974,0.00018413,3]
[346431087,1734973840890,-550.720004,0.00018413,3]
[346431100,1734973843464,-15860.5487463,0.00018413,3]
[346431101,1734973843474,-2905.4512537,0.00018413,3]
[346431102,1734973843523,-7549.40688354,0.00018413,3]
[346431103,1734973843534,-138.62530333,0.00018413,2]
[346431104,1734973843544,-500.0,0.00018413,2]
[346431105,1734973843553,-500.0,0.00018413,2]
[346431106,1734973843562,-580.03,0.00018413,2]
[346431107,1734973843571,-696.53,0.00018413,2]
[346431108,1734973843580,-169.91907136,0.00018413,2]
[346431109,1734973843590,-501.07254316,0.00018413,2]
[346431110,1734973843599,-560.73300407,0.00018413,2]
[346431111,1734973843608,-893.73,0.00018413,2]
[346431112,1734973843617,-500.0,0.00018413,2]
[346431113,1734973843627,-500.0,0.00018413,2]
[346431114,1734973843637,-679.01,0.00018413,2]
[346431115,1734973843646,-1805.15,0.00018413,2]
[346431116,1734973843655,-500.0,0.00018413,2]
[346431117,1734973843664,-760.44,0.00018413,2]
[346431118,1734973843674,-500.0,0.00018413,2]
[346431119,1734973843683,-675.26,0.00018413,2]
[346431120,1734973843693,-500.0,0.00018413,2]
[346431121,1734973843702,-500.0,0.00018413,2]
[346431122,1734973843712,-500.0,0.00018413,2]
[346431123,1734973843721,-500.0,0.00018413,2]
[346431124,1734973843731,-500.0,0.00018413,2]
[346431125,1734973843741,-725.53,0.00018413,2]
[346431126,1734973843750,-500.0,0.00018413,2]
[346431127,1734973843760,-487.54138547,0.00018413,2]
[346431128,1734973843770,-626.36045378,0.00018413,2]
[346431129,1734973843780,-500.0,0.00018413,2]
[346431130,1734973843789,-682.37,0.00018413,2]
[346431131,1734973843799,-500.0,0.00018413,2]
[346431132,1734973843809,-500.0,0.00018413,2]
[346431134,1734973843819,-2731.85,0.00018413,2]
[346431135,1734973843828,-555.85,0.00018413,2]
[346431136,1734973843838,-500.0,0.00018413,2]
[346431137,1734973843848,-500.0,0.00018413,2]
[346431138,1734973843858,-500.0,0.00018413,2]
[346431139,1734973843867,-500.0,0.00018413,2]
[346431141,1734973843877,-500.0,0.00018413,2]
[346431143,1734973843887,-500.0,0.00018413,2]
[346431144,1734973843896,-500.0,0.00018413,2]
[346431145,1734973843907,-801.8,0.00018413,2]
[346431146,1734973843916,-631.39,0.00018413,2]
[346431147,1734973843927,-500.0,0.00018413,2]
[346431148,1734973843937,-851.84,0.00018413,2]
[346431150,1734973843946,-560.72,0.00018413,2]
[346431151,1734973843956,-500.0,0.00018413,2]
[346431152,1734973843965,-1872.13,0.00018413,2]
[346431153,1734973843975,-655.06,0.00018413,2]
[346431154,1734973843984,-500.0,0.00018413,2]
[346431155,1734973843994,-500.0,0.00018413,2]
[346431156,1734973844004,-500.0,0.00018413,2]
[346431158,1734973844013,-500.0,0.00018413,2]
[346431159,1734973844023,-573.75,0.00018413,2]
[346431160,1734973844032,-500.0,0.00018413,2]
[346431161,1734973844042,-500.0,0.00018413,2]
[346431162,1734973844051,-500.0,0.00018413,2]
[346431163,1734973844060,-3147.97,0.00018413,2]
[346431164,1734973844070,-730.45,0.00018413,2]
[346431165,1734973844079,-1459.04,0.00018413,2]
[346431166,1734973844089,-1272.95,0.00018413,2]
[346431167,1734973844099,-440.47796937,0.00018413,2]
[346431168,1734973844108,-912.65,0.00018413,2]
[346431169,1734973844118,-500.0,0.00018413,2]
[346431170,1734973844128,-500.0,0.00018413,2]
[346431171,1734973844138,-1020.44,0.00018413,2]
[346431172,1734973844147,-977.1,0.00018413,2]
[346431173,1734973844157,-499.67642573,0.00018413,2]
[346431174,1734973844166,-1907.83,0.00018413,2]
[346431175,1734973844176,-500.0,0.00018413,2]
[346431176,1734973844186,-813.03,0.00018413,2]
[346431177,1734973844195,-1606.27,0.00018413,2]
[346431181,1734973844304,-500.0,0.00018413,2]
[346431183,1734973844376,-500.0,0.00018413,2]
[346431184,1734973844387,-2849.56,0.00018413,2]
[346431185,1734973844398,-501.23677875,0.00018413,2]
[346431186,1734973844407,-1873.84,0.00018413,2]
[346431187,1734973844417,-500.88557418,0.00018413,2]
[346431188,1734973844426,-769.64,0.00018413,2]
[346431189,1734973844435,-511.77639232,0.00018413,2]
[346431190,1734973844445,-547.27438089,0.00018413,2]
[346431191,1734973844454,-500.0,0.00018413,2]
[346431192,1734973844467,-500.0,0.00018413,2]
[346431193,1734973844475,-500.0,0.00018413,2]
[346431194,1734973844484,-2199.63,0.00018413,2]
[346431195,1734973844493,-500.0,0.00018413,2]
[346431196,1734973844504,-1685.86,0.00018413,2]
[346431197,1734973844513,-500.0,0.00018413,2]
[346431198,1734973844522,-770.89,0.00018413,2]
[346431199,1734973844531,-501.38454814,0.00018413,2]
[346431200,1734973844540,-500.0,0.00018413,2]
[346431201,1734973844549,-944.81,0.00018413,2]
[346431202,1734973844558,-2392.66,0.00018413,2]
[346431203,1734973844568,-825.09,0.00018413,2]
[346431204,1734973844577,-500.0,0.00018413,2]
[346431205,1734973844586,-525.75510047,0.00018413,2]
[346431206,1734973844595,-500.0,0.00018413,2]
[346431207,1734973844605,-500.0,0.00018413,2]
[346431208,1734973844614,-500.0,0.00018413,2]
[346431209,1734973844624,-2175.92418544,0.00018413,2]
[346431210,1734973844644,-1210.78581456,0.00018413,2]
[346431211,1734973844654,-500.0,0.00018413,2]
[346431212,1734973844663,-909.99417221,0.00018413,2]
[346431213,1734973844676,-1008.11582779,0.00018413,2]
[346431214,1734973844686,-382.95298025,0.00018413,2]
[346431215,1734973844695,-500.0,0.00018413,2]
[346431216,1734973844705,-500.0,0.00018413,2]
[346431217,1734973844715,-500.0,0.00018413,2]
[346431218,1734973844724,-500.0,0.00018413,2]
[346431219,1734973844734,-754.72,0.00018413,2]
[346431220,1734973844743,-1355.17,0.00018413,2]
[346431221,1734973844752,-1061.36,0.00018413,2]
[346431222,1734973844762,-200.0,0.00018413,2]
[346431223,1734973844772,-500.0,0.00018413,2]
[346431224,1734973844782,-500.0,0.00018413,2]
[346431225,1734973844791,-500.0,0.00018413,2]
[346431226,1734973844801,-500.0,0.00018413,2]
[346431227,1734973844810,-652.68,0.00018413,2]
[346431228,1734973844820,-500.0,0.00018413,2]
[346431229,1734973844829,-4448.97,0.00018413,2]
[346431230,1734973844839,-600.4,0.00018413,2]
[346431231,1734973844848,-500.0,0.00018413,2]
[346431232,1734973844857,-500.0,0.00018413,2]
[346431233,1734973844867,-500.0,0.00018413,2]
[346431234,1734973844876,-1098.54,0.00018413,2]
[346431235,1734973844885,-1922.88,0.00018413,2]
[346431236,1734973844899,-500.0,0.00018413,2]
[346431237,1734973844908,-500.0,0.00018413,2]
[346431238,1734973844918,-500.0,0.00018413,2]
[346431239,1734973844927,-545.31005096,0.00018413,2]
[346431240,1734973844937,-3099.27,0.00018413,2]
[346431241,1734973844947,-500.0,0.00018413,2]
[346431242,1734973844956,-500.0,0.00018413,2]
[346431243,1734973844966,-671.01,0.00018413,2]
[346431244,1734973844975,-5813.52,0.00018413,2]
[346431245,1734973844985,-500.0,0.00018413,2]
[346431246,1734973844994,-500.0,0.00018413,2]
[346431247,1734973845004,-500.0,0.00018413,2]
[346431248,1734973845013,-1764.26,0.00018413,2]
[346431249,1734973845023,-500.0,0.00018413,2]
[346431250,1734973845033,-1048.59,0.00018413,2]
[346431251,1734973845042,-1113.93,0.00018413,2]
[346431252,1734973845052,-500.0,0.00018413,2]
[346431253,1734973845061,-500.0,0.00018413,2]
[346431254,1734973845070,-500.0,0.00018413,2]
[346431255,1734973845080,-7970.56,0.00018413,2]
[346431256,1734973845089,-500.0,0.00018413,2]
[346431257,1734973845098,-500.0,0.00018413,2]
[346431258,1734973845107,-1329.48,0.00018413,2]
[346431259,1734973845117,-1677.08,0.00018413,2]
[346431260,1734973845128,-500.0,0.00018413,2]
[346431261,1734973845139,-503.54138044,0.00018413,2]
[346431262,1734973845149,-500.0,0.00018413,2]
[346431263,1734973845158,-500.0,0.00018413,2]
[346431264,1734973845168,-29028.83035787,0.00018413,2]
[346431265,1734973845182,-4785.70964213,0.00018413,2]
[346431266,1734973845192,-994.02,0.00018413,2]
[346431267,1734973845201,-500.0,0.00018413,2]
[346431268,1734973845211,-2469.81786988,0.00018413,2]
[346431269,1734973845230,-1000.87213012,0.00018413,2]
[346431270,1734973845241,-3573.75,0.00018413,2]
[346431271,1734973845251,-572.22,0.00018413,2]
[346431272,1734973845260,-500.0,0.00018413,2]
[346431273,1734973845270,-500.0,0.00018413,2]
[346431274,1734973845280,-500.0,0.00018413,2]
[346431275,1734973845289,-917.93,0.00018413,2]
[346431276,1734973845298,-532.27,0.00018413,2]
[346431277,1734973845307,-1107.69,0.00018413,2]
[346431278,1734973845317,-500.0,0.00018413,2]
[346431279,1734973845327,-500.0,0.00018413,2]
[346431280,1734973845336,-500.0,0.00018413,2]
[346431281,1734973845345,-500.0,0.00018413,2]
[346431282,1734973845354,-500.0,0.00018413,2]
[346431283,1734973845363,-500.0,0.00018413,2]
[346431284,1734973845373,-6242.58,0.00018413,2]
[346431285,1734973845382,-963.21,0.00018413,2]
[346431286,1734973845394,-2317.79,0.00018413,2]
[346431287,1734973845403,-500.0,0.00018413,2]
[346431288,1734973845413,-500.0,0.00018413,2]
[346431289,1734973845422,-500.0,0.00018413,2]
[346431290,1734973845432,-502.06795681,0.00018413,2]
[346431291,1734973845441,-556.83,0.00018413,2]
[346431292,1734973845450,-447.88930435,0.00018413,2]
[346431293,1734973845463,-1565.3,0.00018413,2]
[346431294,1734973845472,-1302.32,0.00018413,2]
[346431295,1734973845482,-840.04,0.00018413,2]
[346431296,1734973845492,-500.0,0.00018413,2]
[346431297,1734973845501,-500.0,0.00018413,2]
[346431298,1734973845511,-531.21,0.00018413,2]
[346431299,1734973845520,-500.0,0.00018413,2]
[346431300,1734973845529,-1720.18,0.00018413,2]
[346431301,1734973845540,-500.0,0.00018413,2]
[346431302,1734973845550,-1052.88,0.00018413,2]
[346431303,1734973845559,-500.0,0.00018413,2]
[346431304,1734973845569,-1017.74,0.00018413,2]
[346431305,1734973845579,-500.0,0.00018413,2]
[346431306,1734973845588,-500.0,0.00018413,2]
[346431307,1734973845598,-502.32409012,0.00018413,2]
[346431308,1734973845607,-1029.52,0.00018413,2]
[346431309,1734973845617,-500.0,0.00018413,2]
[346431310,1734973845627,-500.0,0.00018413,2]
[346431311,1734973845641,-500.0,0.00018413,2]
[346431312,1734973845651,-1049.4,0.00018413,2]
[346431313,1734973845661,-725.08,0.00018413,2]
[346431314,1734973845671,-500.0,0.00018413,2]
[346431315,1734973845681,-205.60615054,0.00018413,2]
[346431316,1734973845691,-500.0,0.00018413,2]
[346431317,1734973845701,-840.07,0.00018413,2]
[346431318,1734973845712,-501.232224,0.00018413,2]
[346431319,1734973845722,-936.19,0.00018413,2]
[346431320,1734973845732,-1140.52,0.00018413,2]
[346431321,1734973845743,-500.0,0.00018413,2]
[346431322,1734973845752,-660.59,0.00018413,2]
[346431323,1734973845763,-500.0,0.00018413,2]
[346431324,1734973845772,-500.0,0.00018413,2]
[346431325,1734973845782,-500.0,0.00018413,2]
[346431326,1734973845792,-500.0,0.00018413,2]
[346431327,1734973845802,-500.0,0.00018413,2]
[346431328,1734973845812,-776.77,0.00018413,2]
[346431329,1734973845822,-500.0,0.00018413,2]
[346431330,1734973845832,-500.0,0.00018413,2]
[346431331,1734973845841,-1824.0,0.00018413,2]
[346431332,1734973845851,-1272.87,0.00018413,2]
[346431333,1734973845860,-500.0,0.00018413,2]
[346431334,1734973845869,-500.0,0.00018413,2]
[346431335,1734973845879,-500.0,0.00018413,2]
[346431336,1734973845891,-500.0,0.00018413,2]
[346431337,1734973845900,-2103.49,0.00018413,2]
[346431338,1734973845910,-500.0,0.00018413,2]
[346431339,1734973845920,-1988.28,0.00018413,2]
[346431340,1734973845930,-500.0,0.00018413,2]
[346431341,1734973845939,-1440.13,0.00018413,2]
[346431342,1734973845949,-3949.26,0.00018413,2]
[346431343,1734973845959,-2156.12,0.00018413,2]
[346431344,1734973845968,-500.0,0.00018413,2]
[346431345,1734973845978,-500.0,0.00018413,2]
[346431346,1734973845987,-155.70106,0.00018413,2]
[346431347,1734973845997,-336.07439077,0.00018413,2]
[346431348,1734973846006,-5891.07,0.00018413,2]
[346431349,1734973846015,-500.0,0.00018413,2]
[346431351,1734973846025,-569.36,0.00018413,2]
[346431352,1734973846035,-563.09,0.00018413,2]
[346431354,1734973846044,-500.76759746,0.00018413,2]
[346431356,1734973846053,-258.43622507,0.00018413,2]
[346431357,1734973846063,-500.46565408,0.00018413,2]
[346431358,1734973846072,-500.0,0.00018413,2]
[346431360,1734973846081,-500.0,0.00018413,2]
[346431361,1734973846090,-3605.74320711,0.00018413,2]
[346431362,1734973846152,-1066.18679289,0.00018413,2]
[346431363,1734973846162,-500.0,0.00018413,2]
[346431364,1734973846171,-500.0,0.00018413,2]
[346431365,1734973846180,-500.0,0.00018413,2]
[346431366,1734973846190,-500.0,0.00018413,2]
[346431368,1734973846200,-1797.7,0.00018413,2]
[346431369,1734973846209,-502.65700314,0.00018413,2]
[346431370,1734973846219,-500.0,0.00018413,2]
[346431371,1734973846229,-500.0,0.00018413,2]
[346431372,1734973846238,-500.0,0.00018413,2]
[346431373,1734973846249,-818.74,0.00018413,2]
[346431374,1734973846259,-500.70924674,0.00018413,2]
[346431375,1734973846269,-500.0,0.00018413,2]
[346431376,1734973846278,-333.61121039,0.00018413,2]
[346431377,1734973846290,-166.38878961,0.00018413,2]
[346431378,1734973846299,-500.0,0.00018413,2]
[346431379,1734973846309,-276.14635889,0.00018413,2]
[346431380,1734973846320,-226.01963168,0.00018413,2]
[346431381,1734973846330,-716.43732043,0.00018413,2]
[346431384,1734973848339,-2702.15880903,0.00017431,2]
[346431385,1734973848350,-1293.70807932,0.00017431,2]
[346431386,1734973848359,-705.29192068,0.00018413,2]
[346431387,1734973848421,-2147.30075889,0.00018413,2]
[346431388,1734973848434,-500.0,0.00018413,2]
[346431389,1734973848443,-906.42,0.00018413,2]
[346431390,1734973848453,-500.0,0.00018413,2]
[346431391,1734973848466,-500.0,0.00018413,2]
[346431392,1734973848476,-500.0,0.00018413,2]
[346431393,1734973848488,-1903.43,0.00018413,2]
[346431394,1734973848498,-5250.24,0.00018413,2]
[346431395,1734973848508,-697.24,0.00018413,2]
[346431396,1734973848518,-500.0,0.00018413,2]
[346431397,1734973848528,-2799.11,0.00018413,2]
[346431398,1734973848539,-500.0,0.00018413,2]
[346431399,1734973848551,-500.0,0.00018413,2]
[346431400,1734973848561,-983.27,0.00018413,2]
[346431401,1734973848571,-500.0,0.00018413,2]
[346431402,1734973848581,-586.5,0.00018413,2]
[346431403,1734973848594,-500.0,0.00018413,2]
[346431404,1734973848604,-151.0,0.00018413,2]
[346431405,1734973848614,-571.83,0.00018413,2]
[346431406,1734973848624,-500.0,0.00018413,2]
[346431407,1734973848634,-500.0,0.00018413,2]
[346431408,1734973848643,-1637.53,0.00018413,2]
[346431409,1734973848653,-500.0,0.00018413,2]
[346431410,1734973848663,-500.0,0.00018413,2]
[346431411,1734973848673,-500.0,0.00018413,2]
[346431412,1734973848683,-500.0,0.00018413,2]
[346431413,1734973848692,-500.0,0.00018413,2]
[346431414,1734973848702,-5507.42,0.00018413,2]
[346431415,1734973848712,-523.38,0.00018413,2]
[346431416,1734973848723,-750.54,0.00018413,2]
[346431417,1734973848734,-500.0,0.00018413,2]
[346431418,1734973848744,-501.83736975,0.00018413,2]
[346431419,1734973848754,-500.0,0.00018413,2]
[346431420,1734973848764,-1338.04,0.00018413,2]
[346431421,1734973848774,-151.0,0.00018413,2]
[346431422,1734973848784,-10957.65,0.00018413,2]
[346431423,1734973848795,-195.03562338,0.00018413,2]
[346431424,1734973848805,-151.0,0.00018413,2]
[346431425,1734973848814,-151.0,0.00018413,2]
[346431426,1734973848824,-500.0,0.00018413,2]
[346431427,1734973848834,-500.0,0.00018413,2]
[346431428,1734973848844,-909.26,0.00018413,2]
[346431429,1734973848854,-151.0,0.00018413,2]
[346431430,1734973848864,-500.0,0.00018413,2]
[346431431,1734973848874,-500.0,0.00018413,2]
[346431432,1734973848884,-6554.86,0.00018413,2]
[346431433,1734973848894,-961.63,0.00018413,2]
[346431434,1734973848904,-500.0,0.00018413,2]
[346431435,1734973848916,-500.0,0.00018413,2]
[346431436,1734973848926,-560.08,0.00018413,2]
[346431437,1734973848936,-500.0,0.00018413,2]
[346431438,1734973848946,-502.07746008,0.00018413,2]
[346431439,1734973848955,-657.0,0.00018413,2]
[346431440,1734973848965,-500.0,0.00018413,2]
[346431441,1734973848975,-500.0,0.00018413,2]
[346431442,1734973848984,-2067.6,0.00018413,2]
[346431443,1734973848994,-500.0,0.00018413,2]
[346431444,1734973849003,-500.0,0.00018413,2]
[346431445,1734973849013,-2118.49,0.00018413,2]
[346431446,1734973849023,-500.0,0.00018413,2]
[346431447,1734973849033,-500.0,0.00018413,2]
[346431448,1734973849043,-500.0,0.00018413,2]
[346431449,1734973849052,-500.0,0.00018413,2]
[346431450,1734973849062,-500.0,0.00018413,2]
[346431451,1734973849173,-515.28,0.00018413,2]
[346431452,1734973849183,-1996.15,0.00018413,2]
[346431453,1734973849192,-546.12042249,0.00018413,2]
[346431454,1734973849202,-1481.38,0.00018413,2]
[346431455,1734973849212,-1351.4,0.00018413,2]
[346431456,1734973849222,-151.0,0.00018413,2]
[346431457,1734973849231,-500.0,0.00018413,2]
[346431458,1734973849240,-1703.64,0.00018413,2]
[346431459,1734973849250,-500.0,0.00018413,2]
[346431460,1734973849259,-6252.02,0.00018413,2]
[346431461,1734973849269,-500.0,0.00018413,2]
[346431462,1734973849279,-586.24654442,0.00018413,2]
[346431463,1734973849289,-2395.3,0.00018413,2]
[346431464,1734973849298,-1294.85,0.00018413,2]
[346431465,1734973849308,-500.0,0.00018413,2]
[346431466,1734973849318,-500.0,0.00018413,2]
[346431467,1734973849328,-2566.94,0.00018413,2]
[346431468,1734973849337,-500.0,0.00018413,2]
[346431469,1734973849347,-508.95,0.00018413,2]
[346431470,1734973849356,-500.0,0.00018414,2]
[346431471,1734973849365,-500.0,0.00018414,2]
[346431472,1734973849376,-500.0,0.00018414,2]
[346431473,1734973849386,-500.0,0.00018414,2]
[346431474,1734973849396,-500.0,0.00018414,2]
[346431475,1734973849406,-170.42686252,0.00018414,2]
[346431476,1734973849419,-329.57313748,0.00018414,2]
[346431477,1734973849428,-500.0,0.00018414,2]
[346431478,1734973849437,-500.0,0.00018414,2]
[346431479,1734973849446,-500.0,0.00018414,2]
[346431480,1734973849456,-500.0,0.00018414,2]
[346431481,1734973849469,-500.0,0.00018414,2]
[346431482,1734973849479,-128.46534874,0.00018414,2]
[346431483,1734973849494,-500.0,0.00018413,2]
[346431484,1734973849504,-371.53465126,0.00018414,2]
[346431485,1734973849514,-1073.45,0.00018414,2]
[346431486,1734973849523,-500.0,0.00018414,2]
[346431487,1734973849532,-503.22492874,0.00018414,2]
[346431488,1734973849542,-500.0,0.00018414,2]
[346431489,1734973849552,-526.01,0.00018414,2]
[346431490,1734973849561,-500.0,0.00018414,2]
[346431491,1734973849570,-632.29,0.00018414,2]
[346431492,1734973849579,-500.0,0.00018414,2]
[346431493,1734973849589,-1693.09,0.00018414,2]
[346431494,1734973849599,-880.97,0.00018414,2]
[346431495,1734973849608,-590.8,0.00018414,2]
[346431496,1734973849617,-500.0,0.00018414,2]
[346431497,1734973849626,-830.38,0.00018414,2]
[346431498,1734973849636,-500.0,0.00018414,2]
[346431499,1734973849647,-500.0,0.00018414,2]
[346431500,1734973849656,-500.0,0.00018414,2]
[346431501,1734973849665,-1804.58,0.00018414,2]
[346431502,1734973849675,-500.0,0.00018414,2]
[346431503,1734973849684,-500.0,0.00018414,2]
[346431504,1734973849694,-500.0,0.00018414,2]
[346431505,1734973849703,-840.9,0.00018414,2]
[346431506,1734973849712,-500.0,0.00018414,2]
[346431507,1734973849722,-807.44,0.00018414,2]
[346431508,1734973849731,-791.44,0.00018414,2]
[346431509,1734973849739,-503.54800389,0.00018414,2]
[346431510,1734973849749,-554.29,0.00018414,2]
[346431511,1734973849758,-500.0,0.00018414,2]
[346431512,1734973849767,-500.0,0.00018414,2]
[346431513,1734973849777,-1151.56,0.00018414,2]
[346431514,1734973849786,-500.0,0.00018414,2]
[346431515,1734973849795,-500.0,0.00018414,2]
[346431516,1734973849805,-830.6,0.00018414,2]
[346431517,1734973849814,-500.0,0.00018414,2]
[346431518,1734973849823,-764.05,0.00018414,2]
[346431519,1734973849833,-1582.68,0.00018414,2]
[346431520,1734973849842,-500.0,0.00018414,2]
[346431521,1734973849852,-500.0,0.00018414,2]
[346431522,1734973849861,-500.0,0.00018414,2]
[346431523,1734973849871,-500.0,0.00018414,2]
[346431524,1734973849880,-500.0,0.00018414,2]
[346431525,1734973849889,-500.0,0.00018414,2]
[346431526,1734973849902,-500.0,0.00018414,2]
[346431527,1734973849914,-562.07,0.00018414,2]
[346431528,1734973849924,-272.5562038,0.00018414,2]
[346431529,1734973849937,-861.4637962,0.00018414,2]
[346431530,1734973849947,-500.0,0.00018414,2]
[346431531,1734973849956,-500.0,0.00018414,2]
[346431532,1734973849966,-1759.98,0.00018414,2]
[346431533,1734973849976,-500.0,0.00018414,2]
[346431534,1734973849986,-1348.76,0.00018414,2]
[346431535,1734973849996,-500.0,0.00018414,2]
[346431536,1734973850006,-2347.43,0.00018414,2]
[346431537,1734973850015,-1145.21,0.00018414,2]
[346431538,1734973850025,-500.0,0.00018414,2]
[346431539,1734973850035,-501.03785211,0.00018414,2]
[346431540,1734973850044,-500.0,0.00018414,2]
[346431541,1734973850053,-500.0,0.00018414,2]
[346431542,1734973850063,-1536.81,0.00018414,2]
[346431543,1734973850072,-500.0,0.00018414,2]
[346431544,1734973850081,-587.42,0.00018414,2]
[346431545,1734973850090,-828.33,0.00018414,2]
[346431546,1734973850099,-500.0,0.00018414,2]
[346431547,1734973850108,-500.0,0.00018414,2]
[346431548,1734973850118,-3957.42,0.00018414,2]
[346431549,1734973850127,-545.37,0.00018414,2]
[346431550,1734973850137,-504.69,0.00018414,2]
[346431551,1734973850147,-2410.41,0.00018414,2]
[346431552,1734973850157,-500.0,0.00018414,2]
[346431553,1734973850166,-500.0,0.00018414,2]
[346431554,1734973850175,-1133.85,0.00018414,2]
[346431555,1734973850186,-2808.05834961,0.00018414,2]
[346431556,1734973850198,-1053.37165039,0.00018414,2]
[346431557,1734973850207,-503.24639597,0.00018414,2]
[346431558,1734973850216,-262.03541035,0.00018414,2]
[346431559,1734973850226,-1370.22,0.00018414,2]
[346431560,1734973850235,-1025.27,0.00018414,2]
[346431561,1734973850244,-1336.8,0.00018414,2]
[346431562,1734973850254,-1317.68,0.00018414,2]
[346431563,1734973850263,-972.67,0.00018414,2]
[346431564,1734973850272,-500.0,0.00018414,2]
[346431565,1734973850281,-500.0,0.00018414,2]
[346431566,1734973850291,-183.8347437,0.00018414,2]
[346431567,1734973850301,-500.0,0.00018414,2]
[346431568,1734973850311,-500.0,0.00018414,2]
[346431569,1734973850319,-500.0,0.00018414,2]
[346431570,1734973850329,-593.78,0.00018414,2]
[346431571,1734973850337,-509.03,0.00018414,2]
[346431572,1734973850346,-727.64,0.00018414,2]
[346431573,1734973850355,-500.0,0.00018414,2]
[346431574,1734973850366,-500.0,0.00018414,2]
[346431575,1734973850375,-2120.86,0.00018414,2]
[346431576,1734973850384,-500.0,0.00018414,2]
[346431577,1734973850395,-1090.99,0.00018414,2]
[346431578,1734973850410,-500.0,0.00018414,2]
[346431579,1734973850420,-922.78,0.00018414,2]
[346431580,1734973850429,-1836.84,0.00018414,2]
[346431581,1734973850438,-716.96,0.00018414,2]
[346431582,1734973850447,-854.22,0.00018414,2]
[346431583,1734973850458,-500.0,0.00018414,2]
[346431584,1734973850469,-2979.46,0.00018414,2]
[346431585,1734973850479,-500.0,0.00018414,2]
[346431586,1734973850488,-500.0,0.00018414,2]
[346431587,1734973850498,-579.65,0.00018414,2]
[346431588,1734973850509,-1379.36,0.00018414,2]
[346431589,1734973850519,-500.0,0.00018414,2]
[346431590,1734973850528,-541.2,0.00018414,2]
[346431591,1734973850539,-500.0,0.00018414,2]
[346431592,1734973850548,-882.86,0.00018414,2]
[346431593,1734973850558,-500.0,0.00018414,2]
[346431594,1734973850566,-1597.89,0.00018414,2]
[346431595,1734973850575,-500.0,0.00018414,2]
[346431596,1734973850584,-500.0,0.00018414,2]
[346431597,1734973850593,-500.0,0.00018414,2]
[346431598,1734973850603,-801.59,0.00018414,2]
[346431599,1734973850612,-1553.13,0.00018414,2]
[346431600,1734973850621,-500.0,0.00018414,2]
[346431601,1734973850630,-530.26,0.00018414,2]
[346431602,1734973850639,-500.0,0.00018414,2]
[346431603,1734973850653,-1248.95,0.00018414,2]
[346431604,1734973850664,-500.58168445,0.00018414,2]
[346431605,1734973850673,-774.2,0.00018414,2]
[346431606,1734973850683,-162.97845884,0.00018414,2]
[346431607,1734973850692,-500.0,0.00018414,2]
[346431608,1734973850701,-1420.45,0.00018414,2]